Cogmind - Beta 17 @@@ ROGUE MODE // 2026.07.05 @ 00:21:37 Player: Nalesnig Result: Escaped! Performance ------------- Evolutions (9) 4500 Regions Visited (19) 3800 Robots Destroyed (230) 1150 Value Destroyed (10076) 10076 Prototype IDs (46) 920 Alien Tech Used (0) 0 Bonus (26845) 26845 TOTAL SCORE: 47291 Bonus ------- High Alert Combat Kills 995 Follower Combat Kills 2019 Prayed to X0-1V1 5000 Major X0-1V1 Interference 9500 Network Hubs Disabled 200 Met Warlord at Base 500 MAIN.C Attacked Warlord 500 Warlord Defense Kills 54 Built Enhanced Grunts 300 A7 Reached Mainframe 300 Met R17 at Cetus 500 Met Warlord at Research 2000 Invited to Help at Command 2000 Win 3000 Friendly Fire -23 Cogmind --------- Core Integrity 1237/1500 Matter 2/300 Energy 1017/1020 System Corruption 3% Temperature Cool (2) Movement Walking (70) Location To Epsilon Eridani Parts ------- > --- POWER (3) -------- Particle-Quantum Reactor > --- PROPULSION (7) --- Biometal-ITA Exoskeleton > --- UTILITY (11) ----- Armored Scrap Engine Advanced Coolant Injector High-capacity Storage Unit Experimental Optical Array Improved Armor Integrity Analyzer Centrium Light Armor Plating Advanced Shield Generator X0-1V1's Piety Tracker > --- WEAPON (4) ------- Hpw. Ballistic Linear Construct/C Prc. Ballistic Hardcell Construct/C Hpw. Ballistic Hardcell Construct/C Enhanced Force Lance > --- INVENTORY (20) --- Advanced VSS Leg Advanced VSS Leg Experimental Q-thruster Experimental Optical Array Improved Kinecellerator Improved Transmission Jammer Experimental Core Shielding Improved Dynamic Insulation System Hardcell Cannon Fusion Bomb Launcher Hellfire Missile Launcher Peak State ------------ > --- POWER ------------ Particle-Quantum Reactor > --- PROPULSION ------- Biometal-ITA Exoskeleton > --- UTILITY ---------- Armored Scrap Engine Advanced Coolant Injector High-capacity Storage Unit Experimental Optical Array Improved Armor Integrity Analyzer Advanced Reaction Control System Centrium Light Armor Plating Centrium Medium Armor Plating Thermal Barrier X0-1V1's Piety Tracker > --- WEAPON ----------- Hellfire Missile Launcher Hpw. Ballistic Linear Construct/C Prc. Ballistic Hardcell Construct/C Hpw. Ballistic Hardcell Construct/C > --- INVENTORY -------- Advanced VSS Leg Advanced VSS Leg Experimental Q-thruster Experimental Optical Array Improved Kinecellerator Improved Transmission Jammer Advanced Reaction Control System Experimental Core Shielding Advanced Shield Generator Improved Dynamic Insulation System Hardcell Cannon Fusion Bomb Launcher Enhanced Force Lance [Rating: 215] Favorites ----------- Power Constructs Engine Ion Engine Reactor Constructs Propulsion Constructs Treads Light Treads Leg Constructs Wheel Armored Wheel Hover Unit Experimental Gyrokinetic Inverter Utility X0-1V1's Piety Tracker Device X0-1V1's Piety Tracker Storage High-capacity Storage Unit Processor Enhanced Optical Array Hackware Hacking Suite Protection Centrium Medium Armor Plating Weapon Constructs Energy Gun Heavy EM Shotgun Ballistic Gun Heavy Assault Rifle Ballistic Cannon Constructs Launcher Hellfire Missile Launcher Impact Weapon Heavy Hammer Slashing Weapon Axe Piercing Weapon Plasma Lance Build | -11 -10 -10 -8 -8 -8 -6 -6 -6 -6 -6 -5 -4 -4 -4 -4 -3 -3 -2 -1 ------- Run | Yrd Mat Sub Mat Sto Rec Fac Ext Cet Arc Hub Fac Fac Upp Upp War Pro Res Res Acc Slots Evolved 18 | . . . 4 . . 4 . . . . 2 2 . . . . 2 2 2 Power 1 | . . . . . . . . . . . 1 . . . . . . . . Propulsion 4 | . . . 2 . . 1 . . . . . . . . . . . 1 . Utility 10 | . . . 1 . . 2 . . . . 1 2 . . . . 1 1 2 Weapon 3 | . . . 1 . . 1 . . . . . . . . . . 1 . . Parts Attached 103 | 7 6 8 27 2 1 5 . 1 1 . 5 5 1 1 3 . 18 5 7 Power 6 | 1 . 1 3 1 . . . . . . . . . . . . . . . Engine 5 | 1 . 1 2 1 . . . . . . . . . . . . . . . Core . | . . . . . . . . . . . . . . . . . . . . Reactor 1 | . . . 1 . . . . . . . . . . . . . . . . Propulsion 17 | 2 . 3 11 . . . . . 1 . . . . . . . . . . Treads 7 | 2 . 2 3 . . . . . . . . . . . . . . . . Leg 9 | . . . 8 . . . . . 1 . . . . . . . . . . Wheel 1 | . . 1 . . . . . . . . . . . . . . . . . Hover . | . . . . . . . . . . . . . . . . . . . . Flight . | . . . . . . . . . . . . . . . . . . . . Utility 58 | 2 3 2 6 . 1 4 . . . . 5 5 1 1 3 . 15 4 6 Device 37 | 1 2 1 3 . 1 2 . . . . 3 4 1 1 3 . 7 4 4 Storage 3 | 1 1 . . . . . . . . . 1 . . . . . . . . Processor 6 | . . . . . . 1 . . . . . 1 . . . . 3 . 1 Hackware 1 | . . . . . . . . . . . 1 . . . . . . . . Protection 11 | . . 1 3 . . 1 . . . . . . . . . . 5 . 1 Artifact . | . . . . . . . . . . . . . . . . . . . . Weapon 22 | 2 3 2 7 1 . 1 . 1 . . . . . . . . 3 1 1 Energy Gun 2 | . . . . 1 . . . 1 . . . . . . . . . . . Energy Cannon . | . . . . . . . . . . . . . . . . . . . . Ballistic Gun 11 | 2 2 1 6 . . . . . . . . . . . . . . . . Ballistic Cannon . | . . . . . . . . . . . . . . . . . . . . Launcher 4 | . . 1 . . . 1 . . . . . . . . . . 1 . 1 Special Weapon . | . . . . . . . . . . . . . . . . . . . . Impact Weapon 1 | . 1 . . . . . . . . . . . . . . . . . . Slashing Weapon 1 | . . . 1 . . . . . . . . . . . . . . . . Piercing Weapon 3 | . . . . . . . . . . . . . . . . . 2 1 . Special Melee Weapon . | . . . . . . . . . . . . . . . . . . . . Unidentified Prototypes 16 | . 1 . 1 1 1 . . 1 1 . . . . . 2 . 6 2 . Parts Lost 60 | . . 7 18 . . 4 . . . 1 1 . 1 . . . 19 2 7 Power 6 | . . 2 2 . . . . . . . . . . . . . 2 . . Propulsion 14 | . . 3 9 . . 2 . . . . . . . . . . . . . Utility 31 | . . 1 5 . . 2 . . . 1 1 . 1 . . . 12 2 6 Weapon 9 | . . 1 2 . . . . . . . . . . . . . 5 . 1 Highest Loss Streak 5 | . . 4 5 . . 3 . . . 1 1 . 1 . . . 4 1 3 To Critical Strikes . | . . . . . . . . . . . . . . . . . . . . Average Backups 15 | 2 10 13 13 14 9 10 12 13 13 14 18 18 18 18 18 18 18 18 14 Power . | . 1 . . . . . 1 1 1 1 1 . . . . . . . . Propulsion 1 | 1 2 1 . 2 . . . . . . . 1 1 1 1 . . 3 3 Utility 8 | . 3 5 5 5 5 6 7 9 8 9 12 11 11 12 12 13 11 10 8 Weapon 4 | . 4 5 6 7 3 3 4 3 4 4 4 4 5 5 5 5 6 4 3 Tool/Special . | . . . . . . . . . . . . . . . . . . . . Unused Backups 55 | . 3 1 2 . 7 . 4 4 1 . . 4 1 . 2 1 11 5 9 Power 2 | . . . . . . . . . . . . 1 . . . . 1 . . Propulsion 11 | . 1 . . . 2 . . . . . . . 1 . . 1 1 2 3 Utility 18 | . . . . . . . 1 3 1 . . 1 . . 2 . 4 1 5 Weapon 24 | . 2 1 2 . 5 . 3 1 . . . 2 . . . . 5 2 1 Tool/Special . | . . . . . . . . . . . . . . . . . . . . Average Slot Usage (%) 72 | . 100 91 81 90 90 68 66 64 64 60 56 62 60 63 63 63 63 59 61 Engine 2 | . 14 8 2 . 9 2 . . . . 1 . . . . . . . . Reactor 2 | . . . 2 . . 2 6 6 6 5 . 2 4 5 4 5 4 4 4 Treads 6 | . 28 22 8 . 1 1 . . . 5 2 1 2 . 1 . 1 . . Leg 5 | . . . 17 27 27 9 3 6 . . 2 3 1 5 1 . . 1 3 Wheel 1 | . . 5 . 9 4 1 . . . . . . . . . . . . . Device 18 | . 14 13 14 18 18 18 20 20 20 20 15 22 24 26 25 26 19 20 19 Storage 7 | . 14 14 9 9 9 6 6 6 6 6 5 5 4 5 5 5 4 4 4 Processor 3 | . . . . . . . 6 6 6 6 5 8 4 5 5 5 5 4 7 Hackware 1 | . . . . . . . . . . . 4 5 4 5 5 5 2 . . Protection 2 | . . . 8 9 2 3 . . . . . . . . . . 3 4 5 Energy Gun 1 | . . . . 7 6 7 7 6 4 . . 2 . . . . . 1 . Energy Cannon 2 | . . . . . 2 1 . 3 6 6 3 1 6 . 3 5 2 4 2 Ballistic Gun 6 | . 26 19 13 1 . . . 4 6 6 4 . . 5 . . . 2 3 Ballistic Cannon 2 | . . . . . . 1 4 . . . 1 5 2 5 5 5 5 3 5 Slashing Weapon 1 | . . . 4 9 9 6 6 2 . . . . . . . . . . . Piercing Weapon 1 | . . . . . . . . . . . . . . . . . 4 3 3 Peak Build Rating 215 | 7 23 23 50 45 57 82 79 92 95 103 117 145 150 142 150 151 183 200 215 Average Rating 101 | 5 9 21 36 42 51 72 77 81 87 92 109 135 141 142 144 148 160 182 206 On Entrance 90 | . 7 23 23 42 45 57 79 78 91 91 90 114 143 142 142 143 150 158 192 Avg Prop Armor Cover (%) 9 | . . 14 9 14 5 5 . . . . . . . . 18 . . . . Naked Turns . | . . . . . . . . . . . . . . . . . . . . Heaviest Build 146 | 14 32 32 45 45 45 60 51 53 52 62 101 107 123 112 118 109 137 146 136 Greatest Support 279 | 40 40 46 86 48 48 87 56 56 76 99 160 150 145 145 221 221 250 279 242 Greatest Overweight (x) 9 | . . 2 1 1 1 1 . . . . 1 1 1 . 9 . 1 . . Average Overweight (x) . | . . . . . . . . . . . . . . . . . . . . Largest Inventory Capacity 20 | 8 15 15 15 15 15 15 15 15 15 15 20 20 20 20 20 20 20 20 20 Average Capacity 17 | 6 11 15 15 15 15 15 15 15 15 15 19 20 20 20 20 20 20 20 20 Most Carried 20 | 4 15 15 15 15 15 14 15 15 15 15 20 20 20 20 20 20 20 20 18 Average Carried 15 | 2 10 13 14 15 10 11 13 14 14 15 19 19 19 19 19 19 18 18 14 Final Capacity 20 | 8 15 15 15 15 15 15 15 15 15 15 20 20 20 20 20 20 20 20 20 Final Carried 20 | 4 15 15 15 15 9 13 15 15 15 15 20 20 19 19 20 19 18 19 11 Scrap Engine Consumption 190 | . . . . . 16 10 10 9 4 1 7 6 5 . 12 1 69 38 2 Constructs Created 12 | . . . . . 2 2 . 1 . . . . . . 1 . 3 2 1 Constructs Modified 209 | . . . . . 3 15 7 8 9 4 14 25 18 . 19 6 39 29 13 Class Distribution -------------------- 55% | Construct 33% | Mutant 6% | Commander-Construct 4% | Scavenger-Mutant Dominant Class ---------------- Mutant | -10/Materials Mutant | -10/Subcaves Scavenger-Mutant | -8/Materials Mutant | -8/Storage Mutant | -8/Recycling Construct | -6/Factory Construct | -6/Extension Commander-Construct | -6/Cetus Commander-Construct | -6/Archives Commander-Construct | -6/Hub_04(d) Construct | -5/Factory Construct | -4/Factory Construct | -4/Upper Caves Construct | -4/Upper Caves Construct | -4/Warlord Construct | -3/Proximity Caves Construct | -3/Research Construct | -2/Research Construct | -1/Access Resources | -11 -10 -10 -8 -8 -8 -6 -6 -6 -6 -6 -5 -4 -4 -4 -4 -3 -3 -2 -1 ----------- Run | Yrd Mat Sub Mat Sto Rec Fac Ext Cet Arc Hub Fac Fac Upp Upp War Pro Res Res Acc Matter Collected 6807 | 228 362 409 895 . 500 338 109 57 46 292 211 229 52 54 359 294 1352 756 264 Remotely . | . . . . . . . . . . . . . . . . . . . . Salvage Created 9499 | 43 696 447 1864 . 93 587 468 132 111 483 702 407 126 86 27 204 1538 639 846 Parts 436 | 5 50 26 93 . 10 19 13 3 7 26 29 23 2 4 2 5 49 23 47 Haulers Intercepted 7 | . 2 . 1 . . . . . . 1 1 . . . . . . 2 . Recyclers Shooed 7 | . . . 2 . . 1 . . . 1 2 . . . . . . . 1 Parts Field Recycled . | . . . . . . . . . . . . . . . . . . . . Retrieved Matter . | . . . . . . . . . . . . . . . . . . . . Parts Self-Destructed 31 | . . 23 . . . . . . . . . . 4 4 . . . . . Prevented 6 | . . 1 . . . . . . . . . . . . . 5 . . . Parts Restored . | . . . . . . . . . . . . . . . . . . . . Kills | -11 -10 -10 -8 -8 -8 -6 -6 -6 -6 -6 -5 -4 -4 -4 -4 -3 -3 -2 -1 ------- Run | Yrd Mat Sub Mat Sto Rec Fac Ext Cet Arc Hub Fac Fac Upp Upp War Pro Res Res Acc Combat Hostiles Destroyed 178 | . 14 16 41 . 3 11 5 2 1 4 4 8 3 1 1 4 26 9 25 Melee 30 | . . . 15 . 1 . 1 . . 1 . . . . . . 3 3 6 Guns 60 | . 14 8 22 . 2 5 1 . . 1 2 1 . 1 . . . 2 1 Cannons 32 | . . . . . . 1 1 . 1 1 . 7 3 . 1 3 14 . . AOE 38 | . . 3 4 . . 3 . . . . . . . . . . 6 4 18 Classes Destroyed 21 | 1 6 3 3 . . 1 . . . 3 . . . . . . 4 . . Worker 18 | . 2 . 2 . . . . . . 5 4 . . . . . 1 . 4 Builder 4 | . . . . . . . . . . 2 . . . . . . 1 . 1 Tunneler 9 | 2 1 . . . . . . . . 1 2 . . . . . . 1 2 Hauler 7 | . 2 . 1 . . . . . . 1 1 . . . . . . 2 . Recycler 5 | . . . 1 . . . 1 . . . 1 . . . . . 1 1 . Mechanic 2 | . 1 . . . . . . . . . 1 . . . . . . . . Operator 3 | . . . 1 . . . . . 1 1 . . . . . . . . . Watcher 4 | . 1 . . . . . 1 . . 1 . . . . . . . 1 . Swarmer 53 | . 3 8 12 . . . . . . . 1 2 . . 1 . 8 5 13 Saboteur 1 | . . . . . . . . . . 1 . . . . . . . . . Grunt 67 | . 11 3 23 . . 7 3 . . 1 . 4 3 . . 1 3 1 7 Brawler 3 | . . . . . . 2 . . . . . 1 . . . . . . . Duelist 1 | . . . . . . . . . . 1 . . . . . . . . . Sentry 16 | . . 1 5 . 1 . 2 . 1 . 3 1 . 1 . . . . 1 Demolisher 2 | . . . . . . . . . . . . . . . . . 2 . . Hunter 14 | . . . 1 . . 2 . . . 1 . . . . . 2 4 2 2 Programmer 3 | . . . . . . . . . . . . . . . . . 1 . 2 Cetus Guard 2 | . . . . . . . . 2 . . . . . . . . . . . Striker 7 | . . . . . . . . . . . . . . . . . 6 1 . Executioner 2 | . . . . . . . . . . . . . . . . . 2 . . Artisan 1 | . . 1 . . . . . . . . . . . . . . . . . Subdweller 6 | . . 4 . . 2 . . . . . . . . . . . . . . Decomposer 1 | . . . . . . . . . . . . . . 1 . . . . . Wasp 1 | . . . . . . . . . . . . . . . . 1 . . . Best Kill Streak 11 | 2 6 4 6 . 1 6 3 2 1 11 8 4 3 1 1 2 6 7 11 Combat Bots Only 9 | . 4 4 6 . 1 6 2 2 1 1 2 4 3 1 1 2 6 6 9 Max Kills in Single Turn 8 | 1 2 2 3 . 1 2 1 1 1 8 3 1 1 1 1 1 3 3 5 Gunslinging 1 | . . . 1 . . . . . . . . . . . . . . . . Exploded 4 | . . 2 3 . . 2 . . . . . . . . . . 3 2 4 Melee 1 | . . . 1 . 1 . 1 . . 1 . . . . . . 1 1 1 Uniques/NPCs Destroyed . | . . . . . . . . . . . . . . . . . . . . Combat | -11 -10 -10 -8 -8 -8 -6 -6 -6 -6 -6 -5 -4 -4 -4 -4 -3 -3 -2 -1 -------- Run | Yrd Mat Sub Mat Sto Rec Fac Ext Cet Arc Hub Fac Fac Upp Upp War Pro Res Res Acc Hostile Shots Fired 1824 | . 55 79 280 . 6 80 36 24 4 64 70 76 32 2 38 24 453 141 360 Missed 637 | . 16 23 75 . 3 27 16 8 2 15 27 17 13 2 26 11 143 57 156 Deflected 3 | . . . . . . . . . . . . . . . . . . . 3 Hits 1187 | . 39 56 205 . 3 53 20 16 2 49 43 59 19 . 12 13 310 84 204 Melee 41 | . . . . . . . . . . 2 . . . . . . 39 . . Projectile 1146 | . 39 56 205 . 3 53 20 16 2 47 43 59 19 . 12 13 271 84 204 AOE 18 | . . . . . 1 . 2 . . . 1 . . . . . 13 1 . Critical Strikes 52 | . 1 . 5 . . 3 . 2 1 3 4 1 . . . . 21 1 10 Damage Taken 21955 | . 451 966 2822 . 96 1273 294 237 69 930 850 1113 351 . 330 214 7068 1337 3554 Core 2896 | . 102 293 446 . . 301 5 85 22 39 53 51 23 . 69 77 992 75 263 Absorbed by Shields 3153 | . . . . . . . 42 201 . . . . . . . . 2032 613 265 Ignored by Resistances 957 | . . . 24 . . 37 . . . . . 9 . . . . 139 11 737 Regen/Repaired (Parts) 7775 | . . . . . 19 290 531 124 47 167 227 1430 533 . 12 226 781 2341 1047 Core Remaining (%) 66 | 100 . 54 . . 41 . . . . 39 94 . . . . 79 17 94 82 Volleys Fired 720 | 4 52 25 98 . 9 35 28 16 8 26 35 71 81 9 28 19 106 41 29 Largest 4 | 2 2 2 2 . 1 2 2 2 3 2 2 2 2 2 2 2 3 3 4 Hottest 286 | 40 46 56 46 . 51 175 175 240 230 286 277 277 262 186 145 145 210 178 231 Shots Fired 1138 | 8 104 43 181 . 9 47 43 25 17 33 39 94 96 10 38 25 190 92 44 Gun 597 | 8 104 40 179 . 9 28 28 24 11 23 33 11 28 9 1 . 19 35 7 Cannon 513 | . . . . . . 17 15 1 6 10 6 83 68 1 37 25 168 52 24 Launcher 28 | . . 3 2 . . 2 . . . . . . . . . . 3 5 13 Special . | . . . . . . . . . . . . . . . . . . . . Kinetic 692 | 8 104 36 179 . . 3 15 14 8 23 11 77 32 10 27 12 33 71 29 Thermal 268 | . . 4 . . . 18 27 11 9 5 . 6 29 . . . 146 11 2 Explosive 27 | . . 3 2 . . 2 . . . . . . . . . . 2 5 13 Electromagnetic 150 | . . . . . 9 24 1 . . 5 28 11 35 . 11 13 8 5 . Robot Hit Streak 16 | 4 13 5 13 . 6 13 8 5 8 7 14 5 6 3 9 4 16 5 6 Robot Miss Streak 6 | 3 4 4 5 . 1 3 3 4 3 3 2 4 3 3 6 2 6 4 5 Penetration Max 1 | . . . 1 . . . . 1 1 1 1 . . . . . . . . Secondary Targets 4 | . 1 . 1 . . 1 . 1 . . . . . . . . . . . Max Gunslinging Chain 1 | . 1 . 1 . . 1 . 1 . . . . . . . . . . . Shots Hit Robots 726 | 4 64 40 169 . 8 33 23 16 14 17 24 36 18 5 25 10 130 57 33 Core Hits 413 | 2 34 14 77 . 3 20 18 8 10 20 43 19 6 2 9 7 53 24 44 Critical Kills 10 | . . . . . . 1 2 2 . 1 . 1 1 1 . . . . 1 Critical Parts Destroyed 16 | . 2 5 . . . . . . . . 1 1 4 1 . . 2 . . Critical Strikes 48 | . 2 7 7 . . 1 2 2 . 1 2 2 5 2 3 2 4 3 3 Meltdown 6 | . . . . . . 1 2 2 . 1 . . . . . . . . . Destroy 17 | . 2 . . . . . . . . . 2 2 5 2 . . 2 1 1 Blast 6 | . . . . . . . . . . . . . . . 3 2 1 . . Corrupt 1 | . . . . . . . . . . . . . . . . . 1 . . Smash 7 | . . 7 . . . . . . . . . . . . . . . . . Sever 7 | . . . 7 . . . . . . . . . . . . . . . . Impale 4 | . . . . . . . . . . . . . . . . . . 2 2 Melee Attacks 267 | . 2 45 62 4 7 7 6 . . . . . . . . . 79 31 24 Impact 47 | . 2 45 . . . . . . . . . . . . . . . . . Slashing 113 | . . . 62 4 7 7 6 . . . . . . . . . 27 . . Piercing 107 | . . . . . . . . . . . . . . . . . 52 31 24 Sneak Attacks 19 | . . 3 5 . 1 . 1 . . . . . . . . . 4 4 1 Combat Hostiles 2 | . . . 1 . . . . . . . . . . . . . . . 1 Follow-up Attacks 4 | . . . . . . . . . . . . . . . . . 4 . . Martial Strikes 5 | . . . . . . . . . . . . . . . . . . . 5 Damage Inflicted 30749 | 73 870 1211 3902 . 218 1566 739 324 434 2058 1475 1745 971 140 541 406 5950 2876 5250 Guns 7027 | 73 870 323 1805 . 162 576 330 309 311 423 518 159 140 140 . . 190 575 123 Cannons 8825 | . . . . . . 300 215 15 123 546 290 1342 831 . 541 406 3399 648 169 Explosions 8831 | . . 206 149 . . 658 . . . 1086 623 244 . . . . 1095 828 3942 Melee 5894 | . . 682 1948 . 56 28 194 . . . . . . . . . 1266 825 895 Ramming 172 | . . . . . . 4 . . . 3 44 . . . . . . . 121 Kinetic 9096 | 73 870 323 1805 . . 55 215 210 245 423 422 1342 769 140 348 76 626 934 220 Thermal 4439 | . . . . . . 405 330 114 189 268 56 . . . . . 2837 168 72 Explosive 7122 | . . 206 149 . . 658 . . . . . 244 . . . . 1095 828 3942 Electromagnetic 4026 | . . . . . 162 416 . . . 1364 953 159 202 . 193 330 126 121 . Impact 682 | . . 682 . . . . . . . . . . . . . . . . . Slashing 2771 | . . . 1948 . 56 28 194 . . . . . . . . . 545 . . Piercing 2441 | . . . . . . . . . . . . . . . . . 721 825 895 Highest Corruption 14 | . . . . . . 1 1 1 1 14 . . . . . . 10 3 3 Average Corruption 3 | . . . . . . 1 1 1 1 8 . . . . . . 7 3 2 Corruption Purged . | . . . . . . . . . . . . . . . . . . . . Corruption Blocked . | . . . . . . . . . . . . . . . . . . . . Effects 71 | . . . . . . . 7 3 1 12 . . . . . . 31 11 6 Message Errors 16 | . . . . . . . 3 1 . 2 . . . . . . 6 4 . Matter Fused 15 | . . . . . . . 1 . . 4 . . . . . . 8 . 2 Heat Flow Errors 7 | . . . . . . . . 1 . . . . . . . . 4 2 . Energy Discharges 10 | . . . . . . . . . . . . . . . . . 7 2 1 Parts Rejected 4 | . . . . . . . . . . . . . . . . . . 1 3 Parts Fused 1 | . . . . . . . . . . . . . . . . . 1 . . Data Loss (minor) 6 | . . . . . . . 2 . 1 1 . . . . . . 1 1 . Data Loss (major) 2 | . . . . . . . 1 . . . . . . . . . . 1 . Misfires 1 | . . . . . . . . . . . . . . . . . 1 . . Alerts 1 | . . . . . . . . 1 . . . . . . . . . . . Misdirections 3 | . . . . . . . . . . 1 . . . . . . 2 . . Weapon Failures 5 | . . . . . . . . . . 4 . . . . . . 1 . . Overload Shots 1 | . . . . . . . . 1 . . . . . . . . . . . Overflow Damage 1569 | . . 250 54 . . 118 . . . 108 71 123 10 . . . 219 163 453 Projectiles 339 | . . . . . . 10 . . . 65 61 123 10 . . . 58 . 12 Explosions 731 | . . . 3 . . 108 . . . 43 10 . . . . . 70 89 408 Melee 499 | . . 250 51 . . . . . . . . . . . . . 91 74 33 Knockbacks 31 | . . 5 . . . . 1 . . . . 6 6 . 2 1 5 . 5 Impact 6 | . . 5 . . . . . . . . . . . . . . . . 1 Kinetic 24 | . . . . . . . 1 . . . . 6 6 . 2 1 5 . 3 Secondary 1 | . . . . . . . . . . . . . . . . . . . 1 Self-Inflicted Damage 652 | . . 32 18 . . 310 . . . 97 31 . . . . . 164 . . Shots 11 | . . 2 1 . . 4 . . . 1 1 . . . . . 2 . . Rammed 2 | . . . 1 . . . . . . 1 . . . . . . . . . Targets Rammed 9 | . . . 1 . . 1 . . . 1 2 . . . . . . . 4 Kicked 7 | . . . . . . 1 . . . . 2 . . . . . . . 4 Crushed . | . . . . . . . . . . . . . . . . . . . . Highest Temperature 452 | . 31 . 268 . 6 304 253 190 223 404 434 357 452 88 44 121 300 358 198 Average Temperature 107 | . 7 . 97 . 5 123 81 83 83 179 185 82 150 57 18 48 101 119 66 Received Heat Transfer 3610 | . 258 210 1152 . 6 495 60 . . 240 108 216 141 . . . 118 11 595 Effects 14 | . . . . . . 3 . . . . 1 1 . . . . 3 6 . Shutdowns 1 | . . . . . . . . . . . . . . . . . . 1 . Energy Bleed 4 | . . . . . . 1 . . . . . 1 . . . . . 2 . Interference 9 | . . . . . . 2 . . . . 1 . . . . . 3 3 . Siege Activations . | . . . . . . . . . . . . . . . . . . . . Martial Activations 3 | . . . . . . . . . . . . . . . . . . . 3 Total Turns 75 | . . . . . . . . . . . . . . . . . . . 75 Longest Duration 29 | . . . . . . . . . . . . . . . . . . . 29 Shielding Activations . | . . . . . . . . . . . . . . . . . . . . Robots Disrupted . | . . . . . . . . . . . . . . . . . . . . Combat Hostiles . | . . . . . . . . . . . . . . . . . . . . Robots Corrupted 11 | . . 5 . . . 1 . . . 1 3 . . . . 1 . . . Combat Hostiles 9 | . . 5 . . . 1 . . . . 2 . . . . 1 . . . Parts Fried 21 | . . 4 . . . . . . . 7 6 . . . . 4 . . . Impact Corruptions 11 | . . 10 . . . . . . . . . . . . . . . . 1 Robots Melted 7 | . . . . . . 1 2 2 . 1 . . . . . . 1 . . Combat Hostiles 7 | . . . . . . 1 2 2 . 1 . . . . . . 1 . . Parts Melted 12 | . . . 1 . . 1 3 3 . 3 . . . . . . 1 . . Heat Transferred 5206 | . . . . . . 555 370 148 370 148 100 . . . . . 3219 222 74 Parts Sabotaged . | . . . . . . . . . . . . . . . . . . . . Parts Stolen . | . . . . . . . . . . . . . . . . . . . . Parts Stripped 19 | . . . . . . . . . . . . . . . . . 19 . . Power Chain Reactions 6 | . . . . . . . . . . 1 5 . . . . . . . . Alert | -11 -10 -10 -8 -8 -8 -6 -6 -6 -6 -6 -5 -4 -4 -4 -4 -3 -3 -2 -1 ------- Run | Yrd Mat Sub Mat Sto Rec Fac Ext Cet Arc Hub Fac Fac Upp Upp War Pro Res Res Acc Maximum Alert Level 4 | . . . 2 2 . . 1 1 1 3 3 2 . . . . 2 2 4 Low Security (%) 51 | 100 100 . 48 . 100 100 74 6 33 26 . . . . . . 58 1 . Level 1 29 | . . . 12 56 . . 25 93 66 20 12 45 . . . . 35 87 8 Level 2 16 | . . . 38 43 . . . . . 36 73 54 . . . . 5 10 44 Level 3 2 | . . . . . . . . . . 16 14 . . . . . . . 41 Level 4 . | . . . . . . . . . . . . . . . . . . . 4 Level 5 . | . . . . . . . . . . . . . . . . . . . . High Security . | . . . . . . . . . . . . . . . . . . . . Max Security . | . . . . . . . . . . . . . . . . . . . . Peak Influence 1104 | 5 119 . 558 440 155 156 241 351 255 989 835 588 . . . . 535 586 1104 Initial 465 | . 3 . 7 228 124 100 56 120 104 60 465 404 . . . . . 297 355 Average 218 | . 33 . 264 383 24 79 119 267 209 472 478 406 . . . . 172 335 686 Influence Increases 9372 | 10 423 240 1160 222 42 475 421 341 211 1120 580 625 107 20 65 90 1392 829 999 Destroy 0b10 Robot/C 4300 | . 280 240 820 . 20 220 220 160 80 260 80 300 80 20 20 80 660 260 500 Destroy 0b10 Robot/NC 300 | 10 35 . 25 . . . 15 10 10 70 45 . . . . . 15 30 35 Destroy Leader 666 | . 46 . 142 . . 40 24 . . 54 32 40 10 . . 10 130 58 80 Allied During Kill 662 | . . . . . . 8 110 151 90 179 4 22 2 . . . 50 46 . Successful Hack 97 | . 14 . 23 . 16 . . . . . 17 . . . . . . . 27 Disable Machine 780 | . . . 45 15 . 75 . 15 30 225 240 75 . . . . 30 15 15 Anti-Garrison Action 150 | . . . . . . . . . . 150 . . . . . . . . . Destroy Structure 1047 | . 3 . 15 3 6 32 7 5 1 152 12 128 . . . . 176 195 312 Advance Influence 100 | . . . . . . 100 . . . . . . . . . . . . . Partial Spotted 120 | . . . . . . . . . . . 30 . . . . . 15 75 . Lose Combat Pursuer 810 | . 45 . 90 . . . 45 . . 30 120 60 15 . 45 . 180 150 30 Miscellaneous 340 | . . . . 204 . . . . . . . . . . . . 136 . . Influence Decreases 8268 | 5 428 226 631 445 362 359 320 297 297 345 703 805 707 67 32 123 862 767 487 Entered New Map 2611 | . 2 . 7 315 196 . 60 97 157 115 485 423 241 10 . 33 . 233 237 Time Decay 4519 | 5 372 196 453 130 109 260 260 180 100 100 198 342 416 57 32 90 605 434 180 Lost Part 541 | . . 30 171 . . 40 . . . 10 10 . 10 . . . 180 20 70 Lost Ally 486 | . . . . . . 59 . 20 40 120 10 40 40 . . . 77 80 . Purge Threat 111 | . 54 . . . 57 . . . . . . . . . . . . . . Squads Dispatched 36 | . 1 . 7 . . 2 1 . . 8 2 5 . . . . 6 2 2 Investigation 9 | . 1 . . . . 1 . . . 1 . . . . . . 5 1 . Extermination 2 | . . . . . . . . . . . 1 1 . . . . . . . Reinforcement 17 | . . . 6 . . . 1 . . 3 1 2 . . . . 1 1 2 Assault 4 | . . . . . . . . . . 2 . 2 . . . . . . . Garrison 4 | . . . 1 . . 1 . . . 2 . . . . . . . . . Intercept . | . . . . . . . . . . . . . . . . . . . . Searches Triggered . | . . . . . . . . . . . . . . . . . . . . Construction Impeded 4 | . . . 1 . . . . . . 1 1 . . . . . . 1 . Haulers Reinforced . | . . . . . . . . . . . . . . . . . . . . Active Scanning Responses . | . . . . . . . . . . . . . . . . . . . . Cargo Convoy Interrupts . | . . . . . . . . . . . . . . . . . . . . Stealth | -11 -10 -10 -8 -8 -8 -6 -6 -6 -6 -6 -5 -4 -4 -4 -4 -3 -3 -2 -1 --------- Run | Yrd Mat Sub Mat Sto Rec Fac Ext Cet Arc Hub Fac Fac Upp Upp War Pro Res Res Acc Distress Signals 37 | . 1 . 10 . 1 . 1 2 . 5 . 1 . . 2 . 4 9 1 Communications Jammed 2 | . . . . . . . . . . . . . . . . 1 1 . . Distress Signals 2 | . . . . . . . . . . . . . . . . 1 1 . . Times Spotted 426 | . 24 16 72 . 4 20 14 10 3 34 16 27 4 1 25 4 60 49 43 Peak Tracking Total 14 | . 3 3 9 . 1 5 7 5 2 13 7 5 4 1 11 2 9 7 14 Tactical Retreats 39 | . 2 1 4 . 1 . 2 . . 2 3 4 1 . 2 . 11 4 2 Traps | -11 -10 -10 -8 -8 -8 -6 -6 -6 -6 -6 -5 -4 -4 -4 -4 -3 -3 -2 -1 ------- Run | Yrd Mat Sub Mat Sto Rec Fac Ext Cet Arc Hub Fac Fac Upp Upp War Pro Res Res Acc Traps Triggered 9 | . . . . . . 3 . . . . 1 3 . . . . 2 . . Indirectly . | . . . . . . . . . . . . . . . . . . . . Trap Hack Attempts . | . . . . . . . . . . . . . . . . . . . . Triggered . | . . . . . . . . . . . . . . . . . . . . Disarmed . | . . . . . . . . . . . . . . . . . . . . Reprogrammed . | . . . . . . . . . . . . . . . . . . . . Reused . | . . . . . . . . . . . . . . . . . . . . Traps Extracted . | . . . . . . . . . . . . . . . . . . . . Installed . | . . . . . . . . . . . . . . . . . . . . Triggered . | . . . . . . . . . . . . . . . . . . . . Most Traps Carried 1 | . . 1 1 . . . . . . . . . . . . . . . . Machines | -11 -10 -10 -8 -8 -8 -6 -6 -6 -6 -6 -5 -4 -4 -4 -4 -3 -3 -2 -1 ---------- Run | Yrd Mat Sub Mat Sto Rec Fac Ext Cet Arc Hub Fac Fac Upp Upp War Pro Res Res Acc Machines Disabled 53 | . . . 3 1 . 5 . 1 2 16 16 5 . . . . 2 1 1 Max in Single Turn 10 | . . . 1 1 . 4 . 1 . 10 8 1 . . . . 2 1 1 Garrison Access 8 | . . . 1 . . 1 . . . 1 1 2 . . . . 1 1 . Network Hub 1 | . . . . . . . . . . 1 . . . . . . . . . Energy Cycler 2 | . . . . . . . 2 . . . . . . . . . . . . Machines Repaired . | . . . . . . . . . . . . . . . . . . . . Machines Dismantled . | . . . . . . . . . . . . . . . . . . . . Machines Sabotaged . | . . . . . . . . . . . . . . . . . . . . Overloaded Fab Kills . | . . . . . . . . . . . . . . . . . . . . Hacking | -11 -10 -10 -8 -8 -8 -6 -6 -6 -6 -6 -5 -4 -4 -4 -4 -3 -3 -2 -1 --------- Run | Yrd Mat Sub Mat Sto Rec Fac Ext Cet Arc Hub Fac Fac Upp Upp War Pro Res Res Acc Machines Accessed 52 | . 9 . 4 . 9 3 3 1 . 3 6 5 . 1 3 . 3 1 1 Terminals 24 | . 7 . 3 . 5 1 2 1 . 2 1 1 . . . . . . 1 Fabricators 5 | . . . . . . 1 . . . . 2 1 . . . . 1 . . Repair Stations . | . . . . . . . . . . . . . . . . . . . . Recycling Units 9 | . 2 . . . 3 . 1 . . . 1 1 . . . . 1 . . Scanalyzers 1 | . . . . . . . . . . . 1 . . . . . . . . Garrison Access 8 | . . . 1 . . 1 . . . 1 1 2 . . . . 1 1 . Total Hacks 134 | . 31 . 10 . 25 5 5 2 . 4 24 8 . 1 9 . 4 3 3 Successful 62 | . 16 . 5 . 10 1 1 . . . 10 4 . 1 9 . 3 1 1 Failed 71 | . 15 . 5 . 15 4 4 2 . 4 13 4 . . . . 1 2 2 Catastrophic 11 | . 1 . 2 . 2 1 . 1 . 3 . 1 . . . . . . . Database Lockouts 1 | . . . . . . . . . . . 1 . . . . . . . . Manual 34 | . 16 . 3 1 5 . . 1 . 1 5 2 . . . . . . . Terminals 67 | . 29 . 9 . 9 2 3 2 . 2 6 2 . . . . . . 3 Fabricators 8 | . . . . . . 2 . . . . 4 1 . . . . 1 . . Repair Stations . | . . . . . . . . . . . . . . . . . . . . Recycling Units 26 | . 2 . . . 14 . 2 . . . 4 2 . . . . 2 . . Scanalyzers 9 | . . . . . . . . . . . 9 . . . . . . . . Garrison Access 12 | . . . 1 . . 1 . . . 2 1 3 . . . . 1 3 . Terminal Hacks 29 | . 8 . 2 . 6 . 1 . . . 1 . . 1 9 . . . 1 Prototype ID Bank 11 | . 3 . . . . . . . . . . . . . 8 . . . . Open Door 3 | . . . . . . . . . . . . . . 1 1 . . . 1 Branch Access Points 1 | . . . 1 . . . . . . . . . . . . . . . . Alert Level 1 | . . . . . . . 1 . . . . . . . . . . . . Unreport Threat 2 | . 1 . . . 1 . . . . . . . . . . . . . . Locate Traps 2 | . 1 . . . . . . . . . 1 . . . . . . . . Maintenance Status 1 | . 1 . . . . . . . . . . . . . . . . . . Hauler Manifests 3 | . 1 . 1 . 1 . . . . . . . . . . . . . . Zone Layout 3 | . 1 . . . 2 . . . . . . . . . . . . . . Release Object 2 | . . . . . 2 . . . . . . . . . . . . . . Fabricator Hacks 3 | . . . . . . . . . . . 1 1 . . . . 1 . . Network Status 3 | . . . . . . . . . . . 1 1 . . . . 1 . . Repair Station Hacks . | . . . . . . . . . . . . . . . . . . . . Recycling Unit Hacks 8 | . 2 . . . 3 . . . . . 1 1 . . . . 1 . . Retrieve Components 8 | . 2 . . . 3 . . . . . 1 1 . . . . 1 . . Scanalyzer 4 | . . . . . . . . . . . 4 . . . . . . . . Retrieve Study 4 | . . . . . . . . . . . 4 . . . . . . . . Garrison Access Hacks 7 | . . . 1 . . 1 . . . . 1 2 . . . . 1 1 . Seal Access 7 | . . . 1 . . 1 . . . . 1 2 . . . . 1 1 . Unauthorized Hacks 11 | . 6 . 2 . 1 . . . . . 2 . . . . . . . . Terminals 10 | . 6 . 2 . . . . . . . 2 . . . . . . . . Track 3 | . 3 . . . . . . . . . . . . . . . . . . Assimilate 1 | . . . . . . . . . . . 1 . . . . . . . . Botnet 6 | . 3 . 2 . . . . . . . 1 . . . . . . . . Fabricators . | . . . . . . . . . . . . . . . . . . . . Repair Stations . | . . . . . . . . . . . . . . . . . . . . Recycling Units 1 | . . . . . 1 . . . . . . . . . . . . . . Mask 1 | . . . . . 1 . . . . . . . . . . . . . . Scanalyzers . | . . . . . . . . . . . . . . . . . . . . Garrison Access . | . . . . . . . . . . . . . . . . . . . . Data Cores Recovered . | . . . . . . . . . . . . . . . . . . . . Used . | . . . . . . . . . . . . . . . . . . . . Hacking Detections 38 | . 9 . 3 . 7 2 3 2 . 3 2 4 . . . . 1 1 1 Full Trace Events 4 | . 1 . . . 2 . . . . 1 . . . . . . . . . Feedback Events 1 | . . . . . . . . . . 1 . . . . . . . . . Corruption 1 | . . . . . . . . . . 1 . . . . . . . . . Feedback Blocked . | . . . . . . . . . . . . . . . . . . . . Robot Schematics Acquired . | . . . . . . . . . . . . . . . . . . . . Robots Built . | . . . . . . . . . . . . . . . . . . . . Authchips . | . . . . . . . . . . . . . . . . . . . . Time . | . . . . . . . . . . . . . . . . . . . . Total Robot Build Rating . | . . . . . . . . . . . . . . . . . . . . Part Schematics Acquired . | . . . . . . . . . . . . . . . . . . . . Parts Built . | . . . . . . . . . . . . . . . . . . . . Authchips . | . . . . . . . . . . . . . . . . . . . . Time . | . . . . . . . . . . . . . . . . . . . . Total Part Build Rating . | . . . . . . . . . . . . . . . . . . . . Part Studies Acquired 4 | . . . . . . . . . . . 4 . . . . . . . . Parts Repaired . | . . . . . . . . . . . . . . . . . . . . Time . | . . . . . . . . . . . . . . . . . . . . Parts Recycled . | . . . . . . . . . . . . . . . . . . . . Recycled Matter . | . . . . . . . . . . . . . . . . . . . . Retrieved Matter . | . . . . . . . . . . . . . . . . . . . . Retrieved Components 36 | . 20 . . . 6 . . . . . . . . . . . 10 . . Parts Scanalyzed . | . . . . . . . . . . . . . . . . . . . . Part Schematics Acquired . | . . . . . . . . . . . . . . . . . . . . Parts Damaged . | . . . . . . . . . . . . . . . . . . . . Bothacking | -11 -10 -10 -8 -8 -8 -6 -6 -6 -6 -6 -5 -4 -4 -4 -4 -3 -3 -2 -1 ------------ Run | Yrd Mat Sub Mat Sto Rec Fac Ext Cet Arc Hub Fac Fac Upp Upp War Pro Res Res Acc Used RIF Installer . | . . . . . . . . . . . . . . . . . . . . Robots Hacked . | . . . . . . . . . . . . . . . . . . . . Non-combat . | . . . . . . . . . . . . . . . . . . . . Combat . | . . . . . . . . . . . . . . . . . . . . Robot Hacks Applied . | . . . . . . . . . . . . . . . . . . . . Relay Couplers Released 3 | . . . . . . . . . . 2 . . . . . . . 1 . Machine Destruction 3 | . . . . . . . . . . 2 . . . . . . . 1 . Fabnet Peak Effective % . | . . . . . . . . . . . . . . . . . . . . Robots Rewired 5 | . . . . . . . 4 . . . 1 . . . . . . . . Allies Hacked 1 | . . . . . . . . . . . 1 . . . . . . . . Hacks Repelled . | . . . . . . . . . . . . . . . . . . . . Allies | -11 -10 -10 -8 -8 -8 -6 -6 -6 -6 -6 -5 -4 -4 -4 -4 -3 -3 -2 -1 -------- Run | Yrd Mat Sub Mat Sto Rec Fac Ext Cet Arc Hub Fac Fac Upp Upp War Pro Res Res Acc Total Allies 33 | . . . . . . 3 9 5 . . 2 4 . . . . 6 4 . Largest Group 12 | . . . . . . 3 9 12 12 9 1 2 2 . . . 3 4 . Highest-Rated Group 851 | . . . . . . 87 427 851 851 571 29 70 70 . . . 243 200 . Highest-Rated Ally 159 | . . . . . . 29 159 159 159 96 29 35 35 . . . 81 50 . Total Orders . | . . . . . . . . . . . . . . . . . . . . Ally Attacks 269 | . . . . . . 5 30 44 13 76 1 22 1 . . . 39 38 . Total Damage 7924 | . . . . . . 77 766 930 376 2146 . 677 152 . . . 1285 1515 . Kills 54 | . . . . . . . 7 9 4 14 . 7 1 . . . 7 5 . Allies Corrupted 1 | . . . . . . . . . . 1 . . . . . . . . . Allies Melted 1 | . . . . . . . . . . . . . . . 1 . . . . X0-1V1 Amusement Gains 309 | . 14 10 20 . 10 50 30 . . 40 5 40 10 . 20 . 35 25 . Good Acts 102 | . . 8 12 . 7 7 1 2 1 2 7 10 4 2 2 2 17 15 3 Bad Acts 77 | . . 10 13 1 1 3 4 2 1 4 . 5 1 3 . 2 15 5 7 Intel | -11 -10 -10 -8 -8 -8 -6 -6 -6 -6 -6 -5 -4 -4 -4 -4 -3 -3 -2 -1 ------- Run | Yrd Mat Sub Mat Sto Rec Fac Ext Cet Arc Hub Fac Fac Upp Upp War Pro Res Res Acc Active Infowar (turns) 8924 | 7 1331 . 18 . 42 . . . . . . 760 1014 372 770 355 2819 1067 369 Optics 7526 | . . . . . . . . . . . . 760 1014 372 770 355 2819 1067 369 Sensors 4713 | . . . . . . . . . . . . 755 1014 372 480 339 539 1020 194 Terrain 1219 | . . . . . . . . . . . . . . . . . 270 949 . Seismic 1338 | 7 1331 . . . . . . . . . . . . . . . . . . Jamming 4318 | . . . . . . . . . . . . 263 1014 372 456 242 1971 . . ECM 60 | . . . 18 . 42 . . . . . . . . . . . . . . Robot Analysis Total . | . . . . . . . . . . . . . . . . . . . . Derelict Logs Recovered 4 | . . 2 . . . . . . . . . . 2 . . . . . . Drone Launches . | . . . . . . . . . . . . . . . . . . . . Drone Recoveries . | . . . . . . . . . . . . . . . . . . . . Exploration | -11 -10 -10 -8 -8 -8 -6 -6 -6 -6 -6 -5 -4 -4 -4 -4 -3 -3 -2 -1 ------------- Run | Yrd Mat Sub Mat Sto Rec Fac Ext Cet Arc Hub Fac Fac Upp Upp War Pro Res Res Acc Turns Passed 15180 | 78 1335 1390 1271 275 906 597 610 369 206 216 401 760 1014 372 770 355 2819 1067 369 Spaces Moved 11361 | 36 702 926 548 79 657 418 523 298 125 220 529 562 618 334 641 445 1879 1578 243 Core 18 | 4 . 2 . . . . . . . . . . . . 12 . . . . Treads 3279 | 32 702 450 99 . . 78 . . 1 192 278 208 423 . 151 . 613 52 . Legs 4261 | . . . 356 10 642 250 290 298 4 . 229 354 162 334 273 . 325 517 217 Wheels 744 | . . 474 93 69 15 90 . . . . . . . . . . . 3 . Hover 1706 | . . . . . . . 233 . . . . . 20 . 73 141 652 587 . Flight 1353 | . . . . . . . . . 120 28 22 . 13 . 132 304 289 419 26 Fastest Speed 36 | 50 160 95 95 105 110 87 69 88 66 47 47 47 92 106 46 46 46 36 65 Average Speed 96 | 147 160 126 127 105 110 101 79 93 67 63 55 88 128 106 99 46 109 44 67 Slowest Speed 500 | 160 160 160 240 110 150 147 88 112 112 66 83 139 139 106 500 46 268 65 130 Overloaded Moves 25 | . . . . . . . . . . . . . . . . . . 23 2 Propulsion Burnouts . | . . . . . . . . . . . . . . . . . . . . Robots Hopped 3 | . . . . . . . . . . . . . . . . . . 2 1 Potential Cave-ins 34 | . . . 10 . . . 7 . . . . 8 . . 2 . 5 2 . Cave-ins Triggered . | . . . . . . . . . . . . . . . . . . . . Exploration Rate (%) 51 | 3 97 55 54 17 81 19 62 74 91 26 21 17 92 66 89 62 47 45 10 Regions Visited 19 Branch Regions 11 Pre-discovered Areas 2 | . . 1 . . . . . . . . . . 1 . . . . . . Known Exits Taken 4 | . . . 1 . . . . . . 1 . . . . . . 1 1 . Unknown Exits Taken 15 | 1 1 1 . 1 1 1 1 1 1 . 1 1 1 1 1 1 . . . Scrap Searched 14 | . . 7 . . . . . . . . . . 3 2 . 2 . . . Spaces Dug 178 | . 2 1 5 3 6 2 4 . . . . 26 40 . . . 43 38 8 Terrain Destroyed 762 | . 2 11 11 3 6 42 17 3 . 181 5 37 97 7 . . 116 75 149 Melee 55 | . 2 1 5 3 6 2 1 . . . . . . . . . 22 11 2 Projectile 269 | . . . . . . 1 16 3 . 1 . 37 97 7 . . 73 17 17 AOE 438 | . . 10 6 . . 39 . . . 180 5 . . . . . 21 47 130 Terrain Rammed . | . . . . . . . . . . . . . . . . . . . . Walls Destroyed . | . . . . . . . . . . . . . . . . . . . . Machines Disabled . | . . . . . . . . . . . . . . . . . . . . Actions | -11 -10 -10 -8 -8 -8 -6 -6 -6 -6 -6 -5 -4 -4 -4 -4 -3 -3 -2 -1 --------- Run | Yrd Mat Sub Mat Sto Rec Fac Ext Cet Arc Hub Fac Fac Upp Upp War Pro Res Res Acc Total 14136 | 50 816 1017 823 262 819 533 668 366 234 266 605 746 754 344 744 573 2346 1815 355 Wait 1418 | . 33 7 62 178 131 57 57 45 98 20 23 97 49 . 63 109 217 130 42 Move 11336 | 35 701 925 547 78 656 417 522 297 124 220 528 561 617 333 640 444 1878 1573 240 Hop 3 | . . . . . . . . . . . . . . . . . . 2 1 Pick Up 105 | 4 14 3 12 . 3 8 6 3 1 . 6 5 2 . 2 . 23 13 . Fast Attach 46 | 7 . 1 16 1 . 1 . . 1 . 2 2 1 . 3 . 8 1 2 Attach 47 | . . 5 7 . 1 5 . . . . 2 2 . . . . 13 4 8 Detach 8 | . . . . . . 1 . 1 . . 1 . . . 1 . 2 2 . Swap 48 | . 7 6 8 1 . . . 1 . . 1 1 . 1 1 . 4 7 10 Drop 86 | . 7 . 10 . 12 1 4 3 2 . . 7 4 1 6 1 17 11 . Fire 720 | 4 52 25 98 . 9 35 28 16 8 26 35 71 81 9 28 19 106 41 29 Melee 257 | . 2 45 62 4 7 7 6 . . . . . . . . . 74 31 19 Ram . | . . . . . . . . . . . . . . . . . . . . Kick 7 | . . . . . . 1 . . . . 2 . . . . . . . 4 Crush 1 | . . . 1 . . . . . . . . . . . . . . . . Escape Stasis 4 | . . . . . . . . . . . . . . . . . 4 . . Rewire 50 | . . . . . . . 45 . . . 5 . . . . . . . . Trap . | . . . . . . . . . . . . . . . . . . . . Miscellaneous . | . . . . . . . . . . . . . . . . . . . . Route ------- -11/Scrapyard -10/Materials (discovered 6 exits: [*Mat x3] / [*Min x2] / [*Sub]) -10/Subcaves -8/Materials -8/Storage -8/Recycling -6/Factory (discovered 3 exits: *Fac x2 / *Ext) -6/Extension (discovered 2 exits: *Fac / *Cet) -6/Cetus (discovered 2 exits: *Fac / [*Arc]) -6/Archives (discovered 3 exits: *Fac / *Hub x2) -6/Hub_04(d) -5/Factory -4/Factory -4/Upper Caves -4/Upper Caves -4/Warlord -3/Proximity Caves -3/Research -2/Research (discovered 5 exits: *Acc x3 / [*Tes x2]) -1/Access To Epsilon Eridani History --------- Turn | Location | Event 7 | -11/Scrapyard | Discovered new exit (range 15) 79 | -11/Scrapyard | Entered Materials 302 | -10/Materials | Build established: Mutant 310 | -10/Materials | Discovered new exit (range 8) 365 | -10/Materials | Discovered new exit (range 14) 473 | -10/Materials | Discovered new exit (range 8) 774 | -10/Materials | Discovered new exit (range 7) 961 | -10/Materials | Discovered new exit (range 12) 1402 | -10/Materials | Discovered new exit (range 5) 1410 | -10/Materials | Prayed at D.C.S.S. Altar Unit 1414 | -10/Materials | Entered Subcaves 1415 | -10/Subcaves | Approached by a straggling Scientist 1571 | -10/Subcaves | Core integrity fell below 50% 1621 | -10/Subcaves | Learned location of Zion (-6) 1941 | -10/Subcaves | Core integrity permanently improved by X0-1V1 (+200) 1942 | -10/Subcaves | X0-1V1 sent hostile G-34 Mercenary (x3) 2054 | -10/Subcaves | X0-1V1 sent hostile S-10 Pest (x3) 2080 | -10/Subcaves | Mass support permanently improved by X0-1V1 (+6; -200 max core) 2096 | -10/Subcaves | Discovered new exit (range 14) 2292 | -10/Subcaves | Lost 4 parts (1p2n1w) 2310 | -10/Subcaves | A swath of the cavern ceiling suddenly collapsed 2343 | -10/Subcaves | EX resistance permanently improved by X0-1V1 (+10%; -100 max core) 2442 | -10/Subcaves | X0-1V1 activates XOMVISION 2504 | -10/Subcaves | X0-1V1 sent hostile S-10 Pest (x4) 2562 | -10/Subcaves | Core integrity restored by X0-1V1 (+36) 2569 | -10/Subcaves | Learned 2 Materials zone layouts 2711 | -10/Subcaves | X0-1V1 mutated your Weapon slot to Utility slot 2804 | -10/Subcaves | Entered Materials 2804 | -8/Materials | Evolved 4 slots: Propulsion x2, Utility x1, Weapon x1 2805 | -8/Materials | Identified exit to Storage 2825 | -8/Materials | X0-1V1 announced a LAN party 3226 | -8/Materials | X0-1V1 upgraded hostiles (x3) 3269 | -8/Materials | Core integrity fell below 50% 3285 | -8/Materials | Lost 5 parts (2n2u1w) 3618 | -8/Materials | Build established: Scavenger-Mutant 3808 | -8/Materials | Lost 3 parts (2n1w) 3910 | -8/Materials | Core integrity fell below 20% 3937 | -8/Materials | Garrison activated, responded to threat 4037 | -8/Materials | Build established: Mutant 4039 | -8/Materials | X0-1V1 vaporized surrounding terrain (radius 20) 4056 | -8/Materials | Core integrity restored by X0-1V1 (+99) 4075 | -8/Materials | Entered Storage 4075 | -8/Storage | X0-1V1 added 0b10 threat records associated with you (considerable) 4345 | -8/Storage | Used back door to open Recycling access 4345 | -8/Storage | Discovered new exit (range 5) 4350 | -8/Storage | Entered Recycling 4530 | -8/Recycling | Discovered new exit (range 15) 4628 | -8/Recycling | Entered Scraplab 4643 | -8/Recycling | Found Prototype Device 4649 | -8/Recycling | Identified Scrap Engine 4999 | -8/Recycling | X0-1V1 activates XOMVISION 5235 | -8/Recycling | Core integrity restored by X0-1V1 (+85) 5256 | -8/Recycling | Entered Factory 5256 | -6/Factory | Evolved 4 slots: Propulsion x1, Utility x2, Weapon x1 5486 | -6/Factory | X0-1V1 sent you to a vault 5596 | -6/Factory | Garrison activated, responded to threat 5717 | -6/Factory | Discovered new exit (range 4) 5768 | -6/Factory | Identified exit to Factory 5768 | -6/Factory | X0-1V1 revealed exit location to -5/Factory 5785 | -6/Factory | Lost 3 parts (1n2u) 5798 | -6/Factory | Build established: Construct 5843 | -6/Factory | Discovered new exit (range 13) 5853 | -6/Factory | Entered Extension 5961 | -6/Extension | Energy Cycler disabled 5961 | -6/Extension | Rescued a captive Derelict 5961 | -6/Extension | Rescued a captive Derelict 5961 | -6/Extension | Rescued a captive Derelict 5961 | -6/Extension | Rescued a captive Derelict 5961 | -6/Extension | Rescued a captive Derelict 5964 | -6/Extension | Rescued A7 5964 | -6/Extension | Rescued a captive Derelict 5964 | -6/Extension | Rescued a captive Derelict 5964 | -6/Extension | Rescued a captive Derelict 5965 | -6/Extension | Rescued a captive Derelict 5969 | -6/Extension | Rescued a captive Derelict 6252 | -6/Extension | X0-1V1 activates XOMVISION 6367 | -6/Extension | X0-1V1 vaporized surrounding terrain (radius 18) 6422 | -6/Extension | Discovered exit to Factory (range 10) 6423 | -6/Extension | Discovered new exit (range 6) 6463 | -6/Extension | Entered Cetus 6463 | -6/Cetus | Accompanied by 9 allies (A7) 6468 | -6/Cetus | Acquired a Cetus Manufacturing Module code from A7 6475 | -6/Cetus | Spotted Cetus Guard 6476 | -6/Cetus | Spotted Cetus Guard 6476 | -6/Cetus | Allies destroyed Cetus Guard 6478 | -6/Cetus | Spotted Cetus Guard 6479 | -6/Cetus | Spotted Cetus Guard 6483 | -6/Cetus | Allies destroyed Cetus Guard 6487 | -6/Cetus | Allies destroyed Cetus Guard 6500 | -6/Cetus | Allies destroyed Cetus Guard 6581 | -6/Cetus | Build established: Commander-Construct 6593 | -6/Cetus | Escorted A7 to Cetus Mainframe 6601 | -6/Cetus | Started Cetus Manufacturing Module 6616 | -6/Cetus | Discovered new exit (range 15) 6626 | -6/Cetus | Manufactured an Enhanced Grunt 6634 | -6/Cetus | Spotted Cetus Guard 6634 | -6/Cetus | Spotted Cetus Guard 6636 | -6/Cetus | Spotted Cetus Guard 6637 | -6/Cetus | Spotted Cetus Guard 6639 | -6/Cetus | Allies destroyed Cetus Guard 6640 | -6/Cetus | Destroyed Cetus Guard 6643 | -6/Cetus | Destroyed Cetus Guard 6649 | -6/Cetus | Core integrity fell below 50% 6650 | -6/Cetus | Allies destroyed Cetus Guard 6651 | -6/Cetus | Manufactured an Enhanced Grunt 6654 | -6/Cetus | Discovered exit to Factory (range 15) 6659 | -6/Cetus | Met Revision 17 6676 | -6/Cetus | Manufactured an Enhanced Grunt 6701 | -6/Cetus | Manufactured an Enhanced Grunt 6726 | -6/Cetus | Manufactured an Enhanced Grunt 6832 | -6/Cetus | Entered Archives 6832 | -6/Archives | Accompanied by 12 allies (A7) 6837 | -6/Archives | Received a hacking code to weaken MAIN.C 6871 | -6/Archives | Discovered exit to Factory (range 15) 6897 | -6/Archives | Discovered new exit (range 14) 6905 | -6/Archives | Discovered new exit (range 15) 6912 | -6/Archives | X0-1V1 foreshadows a heat wave 7035 | -6/Archives | Ambient heat levels rising (+10) 7038 | -6/Archives | Entered Hub_04(d) 7038 | -6/Hub_04(d) | Accompanied by 9 allies 7121 | -6/Hub_04(d) | X0-1V1 announced a LAN party 7124 | -6/Hub_04(d) | System corruption reached 10% 7124 | -6/Hub_04(d) | Discovered exit to Factory (range 6) 7219 | -6/Hub_04(d) | Network Hub disabled 7254 | -6/Hub_04(d) | Entered Factory 7254 | -5/Factory | Evolved 2 slots: Power x1, Utility x1 7275 | -5/Factory | X0-1V1 released a cloud of subatomizers 7328 | -5/Factory | X0-1V1 activates XOMVISION 7372 | -5/Factory | Central database locked down 7539 | -5/Factory | Build established: Construct 7618 | -5/Factory | Discovered new exit (range 11) 7655 | -5/Factory | Entered another Factory area 7655 | -4/Factory | Evolved 2 slots: Utility x2 7725 | -4/Factory | X0-1V1 redirected Transport squads to designated parking area 7777 | -4/Factory | X0-1V1 downgraded hostiles (x3) 7905 | -4/Factory | First assault squad dispatched 8119 | -4/Factory | X0-1V1 sent allied Mutant (x2) 8296 | -4/Factory | Discovered new exit (range 21) 8342 | -4/Factory | X0-1V1 sent hostile G-50 Soldier (x3) 8351 | -4/Factory | X0-1V1 sent allied Martyr (x2) 8415 | -4/Factory | Entered Upper Caves 8415 | -4/Upper Caves | Accompanied by 2 allies 8433 | -4/Upper Caves | Weapon slot count temporarily expanded by X0-1V1 (+2) 9045 | -4/Upper Caves | Learned location of Quarantine (-3) 9059 | -4/Upper Caves | Learned Research emergency access door positions 9250 | -4/Upper Caves | Encountered a Warlord checkpoint 9267 | -4/Upper Caves | Discovered new exit (range 7) 9429 | -4/Upper Caves | Entered another Upper Caves area 9525 | -4/Upper Caves | Encountered a Warlord checkpoint 9567 | -4/Upper Caves | X0-1V1 vaporized surrounding terrain (radius 17) 9786 | -4/Upper Caves | Discovered new exit (range 4) 9801 | -4/Upper Caves | Entered Warlord 10046 | -4/Warlord | Met Warlord 10071 | -4/Warlord | Warlord's base attacked by MAIN.C 10357 | -4/Warlord | X0-1V1 opened Sealed Heavy Doors 10403 | -4/Warlord | Found Prototype Device 10403 | -4/Warlord | Identified Thermal Barrier 10421 | -4/Warlord | Warlord forces counterattacked 10469 | -4/Warlord | Spotted Executioner 10536 | -4/Warlord | Spotted Striker 10565 | -4/Warlord | Discovered new exit (range 18) 10567 | -4/Warlord | Spotted Executioner 10571 | -4/Warlord | Entered Proximity Caves 10595 | -3/Proximity Caves | Lost 25 allies 10606 | -3/Proximity Caves | X0-1V1 sent hostile Wasp (x2) 10899 | -3/Proximity Caves | Discovered new exit (range 6) 10926 | -3/Proximity Caves | Entered Research 10926 | -3/Research | Evolved 2 slots: Utility x1, Weapon x1 10944 | -3/Research | X0-1V1 sent you into danger 11040 | -3/Research | Identified exit to Research 11040 | -3/Research | X0-1V1 revealed exit location to -2/Research 11126 | -3/Research | Revision forces began assault on 0b10 11298 | -3/Research | Found Prototype Launcher 11422 | -3/Research | X0-1V1 sent hostile Savage (x1) 11433 | -3/Research | Found Fusion Bomb Launcher 11543 | -3/Research | X0-1V1 sent allied Wizard (x3) 11626 | -3/Research | Research terminal network offline 11643 | -3/Research | X0-1V1 activates XOMVISION 11857 | -3/Research | Found Prototype Launcher 12700 | -3/Research | Spotted Striker 12710 | -3/Research | Found Exp. Targeting Computer 12725 | -3/Research | Destroyed Striker 12732 | -3/Research | Spotted Striker 12736 | -3/Research | Destroyed Striker 12740 | -3/Research | Lost 3 allies 12756 | -3/Research | X0-1V1 mutated your Utility slot to Propulsion slot 12781 | -3/Research | Spotted Executioner 12785 | -3/Research | Spotted Striker 12788 | -3/Research | Destroyed Executioner 12821 | -3/Research | Destroyed Striker 12850 | -3/Research | Lost 4 parts (2u2w) 12851 | -3/Research | X0-1V1 added 0b10 threat records associated with you (minor) 12867 | -3/Research | Spotted Striker 12882 | -3/Research | Destroyed Striker 12988 | -3/Research | X0-1V1 mutated your Utility slot to Power slot 13268 | -3/Research | Spotted Striker 13285 | -3/Research | Spotted Executioner 13314 | -3/Research | Destroyed Executioner 13321 | -3/Research | System corruption reached 10% 13356 | -3/Research | Spotted Striker 13362 | -3/Research | X0-1V1 sent allied Y-64 Sentinel (x2) 13440 | -3/Research | Found Prototype Processor 13440 | -3/Research | Identified Exp. Core Analyzer 13444 | -3/Research | Found Exp. Core Analyzer 13505 | -3/Research | Spotted Striker 13523 | -3/Research | Spotted Striker 13523 | -3/Research | Spotted Executioner 13528 | -3/Research | Core integrity fell below 50% 13586 | -3/Research | Identified Hellfire Missile Launcher (x2) 13592 | -3/Research | Destroyed Striker 13615 | -3/Research | Core integrity fell below 20% 13628 | -3/Research | Destroyed Striker 13638 | -3/Research | Lost 3 parts (1p2u) 13737 | -3/Research | Spotted Striker 13745 | -3/Research | Entered another Research area 13745 | -2/Research | Warlord forces began assault on 0b10 13745 | -2/Research | Evolved 2 slots: Propulsion x1, Utility x1 13764 | -2/Research | Identified exit to Access 13764 | -2/Research | X0-1V1 revealed exit location to -1/Access 13843 | -2/Research | Met up with Warlord 13855 | -2/Research | Research machine network offline 13939 | -2/Research | X0-1V1 enhanced Transport squad support 14061 | -2/Research | X0-1V1 sent you to a vault 14138 | -2/Research | Spotted B-90 Cyclops 14237 | -2/Research | Discovered new exit (range 6) 14361 | -2/Research | Spotted Executioner 14517 | -2/Research | Borebot progress halted 14568 | -2/Research | X0-1V1 activates XOMVISION 14570 | -2/Research | Spotted B-90 Cyclops 14598 | -2/Research | Discovered exit to Access (range 11) 14599 | -2/Research | Borebot progress halted 14661 | -2/Research | Spotted Striker 14662 | -2/Research | Spotted Striker 14672 | -2/Research | Destroyed Striker 14753 | -2/Research | Discovered new exit (range 18) 14772 | -2/Research | Warlord invited to help at Command 14772 | -2/Research | Given Cave Seal Controls access code 14802 | -2/Research | X0-1V1 revealed exit location to -1/Access 14809 | -2/Research | Spotted Striker 14812 | -2/Research | Entered Access 14812 | -1/Access | Evolved 2 slots: Utility x2 14825 | -1/Access | Spotted B-99 Colossus 15036 | -1/Access | Destroyed 9 combat bots 15158 | -1/Access | Lost 3 parts (3u) 15176 | -1/Access | Discovered new exit (range 6) 15181 | *** | Escaped! Last Messages --------------- 15168_ U-05 Engineer lays Concrete. 15170_ Penetrated by Slug. 15170_ U-05 Engineer lays Concrete. 15171_ Connecting with Terminal... >>Open(Door) Sealed Barrier opened. 15171_ X0-1V1: "The ol' switcheroo!" B-74 Champion form resolidifies at new position. Form resolidifies at new position. 15172_ U-05 Engineer builds a Wall. 15173_ Penetrated by Slug. 15174_ H-88 Terminator destroyed. 15176_ U-05 Engineer builds a Wall. 15176_ The Access Shell folds into the floor. 15176_ EXIT=FOUND 15179_ Ranged accuracy returns to normal. 15180_ U-05 Engineer lays Concrete. [Achievement: Force of Scrap] [Achievement: Tester] [Achievement: On My Own Terms] Map ----- +----------------------------------------------------+ | ?????????????????????????????????????????????????? | | ?????????????????????????????????????????????????? | | ?????????????????????????????????????????????????? | | ?????????????????????????????????????????????????? | | ?????????????????????????????????????????????????? | | ?????????????????????????????????????????????????? | | ?????????????????????????????????????????????????? | | ?????????????????????????????????????????????????? | | ?????????????????????????????????????????????????? | | ?????????????????????????????????????????????????? | | ?????????????????????????????????????????????????? | | ?????????????????????????????????????????????????? | | ?????????????????????????????????????????????????? | | ?????????????????????????????????????????????????? | | ?????????????????????????????????????????????????? | | ?????????????????????????????????????????????????? | | ?????????????????????????????????????????????????? | | ?????????????????????????????????????????????????? | | ?????????????????????????????????????????????????? | | ?????????????????????????????????????????????????? | | ???????????????????#""""""""""#??????????????????? | | ???????????????????# #??????????????????? | | ???????????????????# #??????????????????? | | ???????????????????# #??????????????????? | | ???????????????????# "" #??????????????????? | | ???????????????????# "@ #??????????????????# | | ???????????????????# #?????????????????? | | ???????????????????# #??????????????????? | | ???????????????????# #??????????????????? | | ??????????????????## ##?????????????????? | | ??????????????????# #?????????????????? | | ??????????????????##"" b ##?????????????????? | | ???????????????????#"" ;##??????????????### | | ???????????????????#"" ; #???????????? # | | ???????????????????#T ###?#??#??? # | | ???????????????????#"" ### # # # | | ???????????????????#"" g ##+##???# | | ????????????????####"" * g # #???# | | ?????? % gg% #???# | | ?????? u % #???# | | ???????+##################### [ !%#???# | | ??????????????????????????# # #### #???# | | ??????????????????????????# # #?# #???# | | ??????????????????????????###########?##?# #???# | | ?????????????????????????????????????????# #???# | | ???????????????????????????????????####### ###"### | | ???????????????????????????????????# | | ???????????????????????????????????# | | ??????????????????????????????????# | | ??????????????????????????????????## | +----------------------------------------------------+ Best States ------------- Heat Dissipation 83 Coolant Potential 100 Energy Generation 92 Energy Capacity 2402 Matter Stores 800 Matter Capacity 1000 Sight Range 26 Robot Scan Range 18 Terrain Scan Range 24 Terrain Scan Density 10 ECM Strength 2 Jamming Range 14 Armor Coverage 600 Resistance: KI 47 Resistance: TH 50 Resistance: EX 10 Evasion (%) 73 Targeting Accuracy 12 Core Analysis 8 Armor Integrity Analysis 40 Recoil Reduction 6 Offensive Hacking 10 Item Schematics ----------------- None Robot Schematics ------------------ None Fabricated ------------ Nothing Repaired ---------- Nothing Studied --------- Lrn. Proton Cannon | -5/Factory | Hacked Missile Launcher | -5/Factory | Hacked Adv. Assault Cannon | -5/Factory | Hacked Phase Cannon | -5/Factory | Hacked Alien Tech Used ----------------- None Achievements -------------- Art Critic Force of Scrap On My Own Terms Tester Ultimate Loadout Welcome To The Revolution Challenges ------------ None Game ------ Seed ComponentMeleeMallet Manual? 0 Play Time 03:29:25 Cumulative 94.5 hours Start 2026.07.04 @ 15:26:28 End 2026.07.05 @ 00:21:37 Sessions 3 Manual Loads 0 Difficulty Rogue Special Mode None Game No. 89 Rogue 89 Adventurer 0 Explorer 0 Win Type 0 Total 4 Types 3/0/1/0/0/0/0/0/0/0 Lore% 64 Gallery% 50 Achievement% 43 Wizard Run 0 Options --------- Layout 1 ASCII 0 Keyboard 0 Movement Mouse Keybinds 0 Fullscreen 1 Font 32/SmallcapsGlow Map View 77x35 Zoom Use 0% Tactical HUD 1 Map Filters NONE Filters NONE Steam 1 RUN: b27f7c61-8ac8-45af-b92c-61698b582fdb